[Event "37th Zalakaros Festival 2018"]
[Site "Zalakaros"]
[Date "2018.05.28"]
[Round "4"]
[White "Saber, Yasser"]
[Black "Pasti, Aron"]
[Result "0-1"]
[ECO "D37"]
[WhiteElo "2266"]
[BlackElo "2064"]
[Annotator "NA"]
[PlyCount "134"]
[EventDate "2018.??.??"]
[EventType "swiss"]
[EventCountry "HUN"]
[SourceTitle "playchess.com"]
[Source "ChessBase"]
[SourceQuality "1"]
[TimeControl "40/5400+30:1800+30"]

1. d4 {[%emt 0:17:28]} d5 {[%emt 0:00:51]} 2. Nf3 {[%emt 0:00:40]} Nf6 {[%emt 0:00:06]} 3. c4 {[%emt 0:00:09]} e6 {[%emt 0:00:03]} 4. Nc3 {[%emt 0:00:07]} Be7 {[%emt 0:00:03]} 5. Bf4 {[%emt 0:00:40]} O-O {[%emt 0:00:43]} 6. e3 {[%emt 0:00:05]} Nbd7 {[%emt 0:00:04]} 7. Qc2 {[%emt 0:00:22]} c6 {[%emt 0:04:10]} 8. Be2 {[%emt 0:04:39]} dxc4 {[%emt 0:00:14]} 9. Bxc4 {[%emt 0:00:01]} b5 {[%emt 0:02:07]} 10. Bd3 {[%emt 0:09:09]} a6 {[%emt 0:02:17]} 11. O-O {[%emt 0:09:14]} c5 {[%emt 0:02:29]} 12. Ne5 {[%emt 0:08:38]} Bb7 {[%emt 0:06:19]} 13. Nxd7 {[%emt 0:01:41]} Qxd7 {[%emt 0:00:13]} 14. dxc5 {[%emt 0:08:35]} Bxc5 {[%emt 0:02:49]} 15. Ne4 {[%emt 0:03:41]} Nxe4 {[%emt 0:05:29]} 16. Bxe4 {[%emt 0:00:03]} Bxe4 {[%emt 0:00:16]} 17. Qxe4 {[%emt 0:00:03]} Rfd8 {[%emt 0:03:16]} 18. Rac1 {[%emt 0:00:00]} Rac8 {[%emt 0:01:16]} 19. h3 {[%emt 0:03:06]} f5 {[%emt 0:05:43]} 20. Qf3 {[%emt 0:03:25]} Bd6 {[%emt 0:09:04]} 21. Rxc8 {[%emt 0:10:09]} Qxc8 {[%emt 0:00:35]} 22. Bg5 {[%emt 0:00:27]} Rd7 {[%emt 0:01:46]} 23. e4 {[%emt 0:06:16]} Qc6 {[%emt 0:04:53]} 24. Rc1 {[%emt 0:08:17]} Qxe4 {[%emt 0:03:48]} 25. Rc8+ {[%emt 0:01:13]} Bf8 {[%emt 0:00:05]} 26. Qxe4 {[%emt 0:04:04]} fxe4 {[%emt 0:00:10]} 27. Kf1 {[%emt 0:00:41]} h6 {[%emt 0:00:51]} 28. Be3 {[%emt 0:00:15]} Kf7 {[%emt 0:00:28]} 29. Ke2 {[%emt 0:00:28]} Bb4 {[%emt 0:00:57]} 30. Rc6 {[%emt 0:00:38]} Rd6 {[%emt 0:01:31]} 31. Rc7+ {[%emt 0:00:02]} Kg6 {[%emt 0:00:34]} 32. Bf4 {[%emt 0:00:55]} Rd5 {[%emt 0:01:36]} 33. a3 {[%emt 0:00:46]} Bd6 {[%emt 0:02:39]} 34. Bxd6 {[%emt 0:00:24]} Rxd6 {[%emt 0:00:03]} 35. Rc3 {[%emt 0:00:37]} Kf5 {[%emt 0:01:05]} 36. h4 {[%emt 0:00:23]} g5 {[%emt 0:00:31]} 37. hxg5 {[%emt 0:00:16]} hxg5 {[%emt 0:00:06]} 38. Rc8 {[%emt 0:00:49]} Rd3 {[%emt 0:00:33]} 39. Rf8+ {[%emt 0:00:17]} Ke5 {[%emt 0:00:16]} 40. Rg8 {[%emt 0:00:00]} Rb3 {[%emt 0:00:07]} 41. Rxg5+ {[%emt 0:05:28]} Kf4 {[%emt 0:01:47]} 42. Rg6 {[%emt 0:12:25]} Rxb2+ {[%emt 0:01:16]} 43. Kf1 {[%emt 0:02:59]} Rb3 {[%emt 0:02:12]} 44. a4 {[%emt 0:02:36]} Kf5 {[%emt 0:00:09]} 45. Rh6 {[%emt 0:00:25]} bxa4 {[%emt 0:07:46]} 46. Rh5+ {[%emt 0:00:02]} Kf4 {[%emt 0:00:09]} 47. Ra5 {[%emt 0:00:49]} a3 {[%emt 0:00:07]} 48. Kg1 {[%emt 0:02:16]} e3 {[%emt 0:03:20]} 49. Ra4+ {[%emt 0:00:02]} Kf5 {[%emt 0:00:10]} 50. fxe3 {[%emt 0:00:40]} Rxe3 {[%emt 0:00:05]} 51. Kf2 {[%emt 0:02:27]} Rb3 {[%emt 0:00:07]} 52. Rxa6 {[%emt 0:01:03]} e5 {[%emt 0:00:43]} 53. Ra4 {[%emt 0:01:43]} Rc3 {[%emt 0:01:32]} 54. Ke2 {[%emt 0:03:49]} Rg3 {[%emt 0:01:20]} 55. Kf2 {[%emt 0:00:09]} Rb3 {[%emt 0:00:06]} 56. Ke2 {[%emt 0:00:51]} Rb2+ {[%emt 0:00:25]} 57. Kf3 {[%emt 0:00:32]} Rb3+ {[%emt 0:01:25]} 58. Ke2 {[%emt 0:00:22]} Rb2+ {[%emt 0:00:04]} 59. Kf3 {[%emt 0:00:12]} e4+ {[%emt 0:00:06]} 60. Ke3 {[%emt 0:01:54]} Rb3+ {[%emt 0:00:27]} 61. Kf2 {[%emt 0:00:29]} Kf4 {[%emt 0:00:33]} 62. Ra8 {[%emt 0:00:32]} e3+ {[%emt 0:00:52]} 63. Ke2 {[%emt 0:00:26]} Rb2+ {[%emt 0:00:07]} 64. Ke1 {[%emt 0:00:34]} a2 {[%emt 0:00:05]} 65. Rf8+ {[%emt 0:00:18]} Ke5 {[%emt 0:00:18]} 66. Re8+ {[%emt 0:00:34]} Kf6 {[%emt 0:00:06]} 67. Rxe3 {[%emt 0:00:36]} a1=R# {[%emt 0:00:08]} 0-1

[Event "37th Zalakaros Festival 2018"]
[Site "Zalakaros"]
[Date "2018.05.28"]
[Round "4"]
[White "Geher, Koppany"]
[Black "Hadzi - Manev, Ljubomir"]
[Result "1/2-1/2"]
[ECO "B06"]
[WhiteElo "2257"]
[BlackElo "2049"]
[Annotator "NA"]
[PlyCount "93"]
[EventDate "2018.??.??"]
[EventType "swiss"]
[EventCountry "HUN"]
[SourceTitle "playchess.com"]
[Source "ChessBase"]
[SourceQuality "1"]
[TimeControl "40/5400+30:1800+30"]

1. e4 {[%emt 0:01:44]} g6 {[%emt 0:00:43]} 2. d4 {[%emt 0:00:05]} Bg7 {[%emt 0:00:06]} 3. Nc3 {[%emt 0:00:06]} a6 {[%emt 0:00:20]} 4. f4 {[%emt 0:01:13]} d5 {[%emt 0:01:18]} 5. Nxd5 {[%emt 0:12:20]} e6 {[%emt 0:02:41]} 6. Nc3 {[%emt 0:06:59]} Qxd4 {[%emt 0:00:30]} 7. Bd3 {[%emt 0:03:35]} Nd7 {[%emt 0:14:40]} 8. Nf3 {[%emt 0:00:28]} Qb4 {[%emt 0:05:33]} 9. O-O {[%emt 0:03:13]} Ngf6 {[%emt 0:04:55]} 10. a3 {[%emt 0:09:06]} Qc5+ {[%emt 0:03:55]} 11. Kh1 {[%emt 0:00:05]} O-O {[%emt 0:10:42]} 12. Qe1 {[%emt 0:00:55]} Qe7 {[%emt 0:05:17]} 13. Qh4 {[%emt 0:04:11]} Nc5 {[%emt 0:09:32]} 14. Be3 {[%emt 0:13:02]} Nxd3 {[%emt 0:01:29]} 15. cxd3 {[%emt 0:00:58]} b6 {[%emt 0:01:32]} 16. f5 {[%emt 0:10:10]} gxf5 {[%emt 0:11:31]} 17. Bg5 {[%emt 0:01:24]} h6 {[%emt 0:02:52]} 18. Bxh6 {[%emt 0:03:14]} Bxh6 {[%emt 0:00:41]} 19. Qxh6 {[%emt 0:00:28]} Ng4 {[%emt 0:01:13]} 20. Qh5 {[%emt 0:05:38]} Rd8 {[%emt 0:10:21]} 21. exf5 {[%emt 0:02:18]} exf5 {[%emt 0:01:00]} 22. Rae1 {[%emt 0:03:11]} Qf6 {[%emt 0:04:10]} 23. Nd5 {[%emt 0:01:42]} Qh6 {[%emt 0:00:17]} 24. Qxh6 {[%emt 0:01:17]} Nxh6 {[%emt 0:00:06]} 25. Nxc7 {[%emt 0:01:11]} Ra7 {[%emt 0:02:45]} 26. Re8+ {[%emt 0:00:16]} Rxe8 {[%emt 0:00:08]} 27. Nxe8 {[%emt 0:00:02]} Kf8 {[%emt 0:02:59]} 28. Nd6 {[%emt 0:00:46]} Be6 {[%emt 0:00:17]} 29. Nc4 {[%emt 0:01:42]} b5 {[%emt 0:01:12]} 30. Ne3 {[%emt 0:00:30]} Rd7 {[%emt 0:00:34]} 31. d4 {[%emt 0:01:06]} Ng4 {[%emt 0:00:36]} 32. Nd1 {[%emt 0:06:04]} Bd5 {[%emt 0:01:25]} 33. Nc3 {[%emt 0:06:23]} Bxf3 {[%emt 0:00:45]} 34. gxf3 {[%emt 0:00:12]} Ne3 {[%emt 0:00:15]} 35. Re1 {[%emt 0:00:47]} Nc2 {[%emt 0:00:14]} 36. Re5 {[%emt 0:00:44]} Rxd4 {[%emt 0:00:31]} 37. Rxf5 {[%emt 0:00:49]} Rd2 {[%emt 0:00:30]} 38. Rd5 {[%emt 0:00:29]} Nd4 {[%emt 0:00:42]} 39. b4 {[%emt 0:00:33]} Nxf3 {[%emt 0:00:34]} 40. Rxd2 {[%emt 0:00:00]} Nxd2 {[%emt 0:00:01]} 41. a4 {[%emt 0:02:57]} bxa4 {[%emt 0:06:31]} 42. Nxa4 {[%emt 0:00:01]} Nc4 {[%emt 0:06:01]} 43. Nc5 {[%emt 0:00:07]} a5 {[%emt 0:00:23]} 44. b5 {[%emt 0:01:20]} Nb6 {[%emt 0:00:24]} 45. Kg2 {[%emt 0:03:27]} a4 {[%emt 0:00:09]} 46. Kf3 {[%emt 0:00:57]} a3 {[%emt 0:00:06]} 47. Nb3 {[%emt 0:02:00]} 1/2-1/2

[Event "37th Zalakaros Festival 2018"]
[Site "Zalakaros"]
[Date "2018.05.28"]
[Round "4"]
[White "Hardicsay, Peter"]
[Black "Srinath, Rao S V"]
[Result "1/2-1/2"]
[ECO "C11"]
[WhiteElo "2211"]
[BlackElo "2363"]
[Annotator "NA"]
[PlyCount "88"]
[EventDate "2018.??.??"]
[EventType "swiss"]
[EventCountry "HUN"]
[SourceTitle "playchess.com"]
[Source "ChessBase"]
[SourceQuality "1"]
[TimeControl "40/5400+30:1800+30"]

1. e4 {[%emt 0:00:03]} e6 {[%emt 0:07:19]} 2. Nf3 {[%emt 0:00:01]} d5 {[%emt 0:00:07]} 3. Nc3 {[%emt 0:00:10]} Nf6 {[%emt 0:01:13]} 4. e5 {[%emt 0:01:14]} Nfd7 {[%emt 0:00:06]} 5. d4 {[%emt 0:00:14]} c5 {[%emt 0:00:01]} 6. dxc5 {[%emt 0:00:16]} Nc6 {[%emt 0:00:04]} 7. Bf4 {[%emt 0:00:31]} Nxc5 {[%emt 0:00:35]} 8. Bd3 {[%emt 0:10:33]} Be7 {[%emt 0:00:25]} 9. h4 {[%emt 0:07:18]} h6 {[%emt 0:00:42]} 10. a3 {[%emt 0:04:03]} a6 {[%emt 0:03:35]} 11. h5 {[%emt 0:05:34]} b5 {[%emt 0:00:12]} 12. Rh3 {[%emt 0:01:12]} b4 {[%emt 0:01:31]} 13. Ne2 {[%emt 0:14:43]} Na4 {[%emt 0:02:52]} 14. Qc1 {[%emt 0:03:36]} Bd7 {[%emt 0:05:10]} 15. Rg3 {[%emt 0:05:25]} Kf8 {[%emt 0:01:30]} 16. Kf1 {[%emt 0:07:01]} Qb6 {[%emt 0:03:01]} 17. Be3 {[%emt 0:04:16]} Qc7 {[%emt 0:01:49]} 18. Bf4 {[%emt 0:05:36]} bxa3 {[%emt 0:02:51]} 19. bxa3 {[%emt 0:00:12]} Na5 {[%emt 0:06:07]} 20. Nfd4 {[%emt 0:04:28]} Nc4 {[%emt 0:00:56]} 21. Nf5 {[%emt 0:03:15]} exf5 {[%emt 0:03:14]} 22. e6 {[%emt 0:00:46]} Qc8 {[%emt 0:02:51]} 23. exd7 {[%emt 0:02:59]} Qxd7 {[%emt 0:00:03]} 24. Nd4 {[%emt 0:00:09]} Bf6 {[%emt 0:01:36]} 25. Bxf5 {[%emt 0:01:17]} Qa7 {[%emt 0:01:47]} 26. Nb3 {[%emt 0:09:34]} Re8 {[%emt 0:01:30]} 27. Bd3 {[%emt 0:02:49]} Qe7 {[%emt 0:03:02]} 28. Be3 {[%emt 0:02:55]} Bxa1 {[%emt 0:03:03]} 29. Qxa1 {[%emt 0:00:10]} Nxe3+ {[%emt 0:00:13]} 30. Rxe3 {[%emt 0:00:16]} Qf6 {[%emt 0:04:57]} 31. Rxe8+ {[%emt 0:02:24]} Kxe8 {[%emt 0:00:04]} 32. Qe1+ {[%emt 0:00:15]} Kd8 {[%emt 0:01:16]} 33. Qa5+ {[%emt 0:00:10]} Nb6 {[%emt 0:00:03]} 34. Qxa6 {[%emt 0:00:48]} Re8 {[%emt 0:01:06]} 35. Qa7 {[%emt 0:00:43]} Re6 {[%emt 0:02:10]} 36. Qb8+ {[%emt 0:01:12]} Nc8 {[%emt 0:00:15]} 37. Qb5 {[%emt 0:01:05]} Qe5 {[%emt 0:07:11]} 38. Kg1 {[%emt 0:00:21]} Qxh5 {[%emt 0:02:19]} 39. Nc5 {[%emt 0:00:21]} Rd6 {[%emt 0:06:26]} 40. Nb7+ {[%emt 0:00:00]} Ke7 {[%emt 0:00:05]} 41. Qc5 {[%emt 0:10:53]} Qd1+ {[%emt 0:03:28]} 42. Kh2 {[%emt 0:01:45]} Qh5+ {[%emt 0:00:03]} 43. Kg1 {[%emt 0:00:11]} Qd1+ {[%emt 0:00:02]} 44. Kh2 {[%emt 0:01:14]} Qh5+ {[%emt 0:00:04]} 1/2-1/2

[Event "37th Zalakaros Festival 2018"]
[Site "Zalakaros"]
[Date "2018.05.28"]
[Round "4"]
[White "Biro, Sandor"]
[Black "Fancsy, Imre"]
[Result "1/2-1/2"]
[ECO "B40"]
[WhiteElo "2191"]
[BlackElo "2388"]
[Annotator "ChessBase"]
[PlyCount "116"]
[EventDate "2018.??.??"]
[EventType "swiss"]
[EventCountry "HUN"]
[SourceTitle "playchess.com"]
[Source "ChessBase"]
[SourceQuality "1"]
[TimeControl "40/5400+30:1800+30"]

1. e4 {[%emt 0:00:04]} c5 {[%emt 0:08:19]} 2. Nf3 {[%emt 0:00:38]} e6 {[%emt 0:00:22]} 3. c3 {[%emt 0:00:07]} Nf6 {[%emt 0:00:52]} 4. e5 {[%emt 0:00:07]} Nd5 {[%emt 0:00:07]} 5. d4 {[%emt 0:00:08]} cxd4 {[%emt 0:00:11]} 6. cxd4 {[%emt 0:00:08]} d6 {[%emt 0:01:36]} 7. a3 {[%emt 0:00:21]} Bd7 {[%emt 0:00:27]} 8. Bd3 {[%emt 0:00:07]} Bc6 {[%emt 0:00:29]} 9. O-O {[%emt 0:00:12]} Nd7 {[%emt 0:00:16]} 10. Qe2 {[%emt 0:01:13]} Rc8 {[%emt 0:03:10]} 11. Re1 {[%emt 0:19:09]} Be7 {[%emt 0:01:55]} 12. Bd2 {[%emt 0:05:26]} dxe5 {[%emt 0:00:49]} 13. dxe5 {[%emt 0:02:22]} Nc5 {[%emt 0:00:33]} 14. Bc2 {[%emt 0:01:45]} Qb6 {[%emt 0:00:14]} 15. Nc3 {[%emt 0:05:00]} Qxb2 {[%emt 0:02:42]} 16. Nxd5 {[%emt 0:00:34]} Bxd5 {[%emt 0:00:21]} 17. Be3 {[%emt 0:11:19]} Bxf3 {[%emt 0:19:22]} 18. gxf3 {[%emt 0:02:07]} Qxe5 {[%emt 0:02:59]} 19. f4 {[%emt 0:07:22]} Qc7 {[%emt 0:29:07]} 20. Rac1 {[%emt 0:13:19]} O-O {[%emt 0:03:26]} 21. f5 {[%emt 0:11:40]} exf5 {[%emt 0:16:26]} 22. Bxf5 {[%emt 0:00:55]} Rcd8 {[%emt 0:00:27]} 23. Qg4 {[%emt 0:02:54]} g6 {[%emt 0:02:04]} 24. Bh6 {[%emt 0:05:54]} Rfe8 {[%emt 0:00:29]} 25. h4 {[%emt 0:00:25]} Rd5 {[%emt 0:01:38]} 26. Be6 {[%emt 0:02:14]} Re5 {[%emt 0:02:46]} 27. Bc4 {[%emt 0:04:57]} Bf6 {[%emt 0:00:36]} 28. Rxe5 {[%emt 0:00:35]} Qxe5 {[%emt 0:00:02]} 29. Rd1 {[%emt 0:02:25]} Qe4 {[%emt 0:01:26]} 30. Qxe4 {[%emt 0:00:44]} Rxe4 {[%emt 0:00:05]} 31. Bd5 {[%emt 0:00:12]} Rxh4 {[%emt 0:00:20]} 32. Be3 {[%emt 0:00:08]} b6 {[%emt 0:00:19]} 33. f4 {[%emt 0:00:45]} Rh3 {[%emt 0:00:57]} 34. Kf2 {[%emt 0:00:27]} Bh4+ {[%emt 0:00:20]} 35. Ke2 {[%emt 0:00:12]} Rh2+ {[%emt 0:00:25]} 36. Kf3 {[%emt 0:00:07]} Rh3+ {[%emt 0:00:48]} 37. Ke2 {[%emt 0:00:07]} Rh2+ {[%emt 0:00:02]} 38. Kf3 {[%emt 0:00:18]} Rc2 {[%emt 0:00:28]} 39. Bd4 {[%emt 0:00:45]} Ne6 {[%emt 0:00:52]} 40. Be5 {[%emt 0:00:00]} Be7 {[%emt 0:00:56]} 41. Bxe6 {[%emt 0:13:18]} fxe6 {[%emt 0:00:08]} 42. Rd7 {[%emt 0:00:04]} Bxa3 {[%emt 0:12:30]} 43. Rxa7 {[%emt 0:10:17]} Bf8 {[%emt 0:02:32]} 44. Rb7 {[%emt 0:00:06]} Rc6 {[%emt 0:01:28]} 45. Kg4 {[%emt 0:02:31]} Bd6 {[%emt 0:08:12]} 46. Kg5 {[%emt 0:01:39]} Bxe5 {[%emt 0:04:16]} 47. fxe5 {[%emt 0:00:27]} Rc1 {[%emt 0:00:32]} 48. Kf6 {[%emt 0:03:42]} Rf1+ {[%emt 0:00:03]} 49. Kxe6 {[%emt 0:00:08]} h5 {[%emt 0:00:10]} 50. Rxb6 {[%emt 0:00:47]} Kg7 {[%emt 0:00:20]} 51. Rb7+ {[%emt 0:00:59]} Kh6 {[%emt 0:00:09]} 52. Rf7 {[%emt 0:01:31]} Re1 {[%emt 0:00:12]} 53. Kf6 {[%emt 0:00:42]} h4 {[%emt 0:00:33]} 54. e6 {[%emt 0:00:17]} h3 {[%emt 0:01:31]} 55. e7 {[%emt 0:01:03]} Rf1+ {[%emt 0:03:38]} 56. Ke6 {[%emt 0:01:08]} Re1+ {[%emt 0:02:28]} 57. Kf6 {[%emt 0:00:10]} Rf1+ {[%emt 0:00:31]} 58. Ke6 {[%emt 0:00:07]} Re1+ {[%emt 0:00:38]} 1/2-1/2

[Event "37th Zalakaros Festival 2018"]
[Site "Zalakaros"]
[Date "2018.05.28"]
[Round "4"]
[White "Horak, Jiri"]
[Black "Szeberenyi, Adam"]
[Result "1/2-1/2"]
[ECO "D30"]
[WhiteElo "2131"]
[BlackElo "2372"]
[Annotator "NA"]
[PlyCount "67"]
[EventDate "2018.??.??"]
[EventType "swiss"]
[EventCountry "HUN"]
[SourceTitle "playchess.com"]
[Source "ChessBase"]
[SourceQuality "1"]
[TimeControl "40/5400+30:1800+30"]

1. d4 {[%emt 0:00:02]} d5 {[%emt 0:00:37]} 2. c4 {[%emt 0:00:04]} e6 {[%emt 0:00:03]} 3. Nf3 {[%emt 0:00:13]} Nf6 {[%emt 0:00:07]} 4. Bg5 {[%emt 0:00:21]} Bb4+ {[%emt 0:00:04]} 5. Nc3 {[%emt 0:00:52]} Nbd7 {[%emt 0:02:14]} 6. Rc1 {[%emt 0:01:37]} O-O {[%emt 0:08:57]} 7. e3 {[%emt 0:02:23]} c5 {[%emt 0:00:30]} 8. cxd5 {[%emt 0:01:29]} exd5 {[%emt 0:00:11]} 9. Bd3 {[%emt 0:06:27]} Qa5 {[%emt 0:09:48]} 10. O-O {[%emt 0:10:37]} c4 {[%emt 0:04:19]} 11. Bb1 {[%emt 0:00:26]} Bxc3 {[%emt 0:02:39]} 12. bxc3 {[%emt 0:01:31]} Re8 {[%emt 0:00:45]} 13. Bxf6 {[%emt 0:02:19]} Nxf6 {[%emt 0:00:16]} 14. Ne5 {[%emt 0:00:47]} Ne4 {[%emt 0:14:18]} 15. Bxe4 {[%emt 0:07:36]} dxe4 {[%emt 0:00:05]} 16. Nxc4 {[%emt 0:00:24]} Qxa2 {[%emt 0:07:28]} 17. Nd6 {[%emt 0:02:05]} Re7 {[%emt 0:01:11]} 18. Ra1 {[%emt 0:00:30]} Qe6 {[%emt 0:00:40]} 19. Nxc8 {[%emt 0:07:26]} Qxc8 {[%emt 0:02:35]} 20. Qb3 {[%emt 0:00:47]} Rc7 {[%emt 0:01:40]} 21. Rfc1 {[%emt 0:04:19]} b5 {[%emt 0:08:56]} 22. Qxb5 {[%emt 0:03:10]} Rxc3 {[%emt 0:00:07]} 23. Rxc3 {[%emt 0:04:36]} Qxc3 {[%emt 0:00:04]} 24. Rb1 {[%emt 0:00:18]} Rc8 {[%emt 0:07:56]} 25. h3 {[%emt 0:03:01]} g6 {[%emt 0:03:56]} 26. Qd5 {[%emt 0:05:42]} a5 {[%emt 0:03:36]} 27. g3 {[%emt 0:08:10]} Qc2 {[%emt 0:11:59]} 28. Ra1 {[%emt 0:03:05]} a4 {[%emt 0:00:21]} 29. Qb7 {[%emt 0:01:49]} h5 {[%emt 0:02:41]} 30. Kg2 {[%emt 0:01:45]} Rc4 {[%emt 0:02:48]} 31. Qb8+ {[%emt 0:00:46]} Rc8 {[%emt 0:01:23]} 32. Qb7 {[%emt 0:01:27]} Rc4 {[%emt 0:00:40]} 33. Qb8+ {[%emt 0:03:20]} Rc8 {[%emt 0:00:16]} 34. Qb7 {[%emt 0:00:33]} 1/2-1/2

[Event "37th Zalakaros Festival 2018"]
[Site "Zalakaros"]
[Date "2018.05.28"]
[Round "4"]
[White "Kosztolanczi, Gyula"]
[Black "Krykun, Yuriy"]
[Result "1/2-1/2"]
[ECO "C54"]
[WhiteElo "2130"]
[BlackElo "2338"]
[Annotator "NA"]
[PlyCount "72"]
[EventDate "2018.??.??"]
[EventType "swiss"]
[EventCountry "HUN"]
[SourceTitle "playchess.com"]
[Source "ChessBase"]
[SourceQuality "1"]
[TimeControl "40/5400+30:1800+30"]

1. e4 {[%emt 0:08:23]} e5 {[%emt 0:01:13]} 2. Nf3 {[%emt 0:00:13]} Nc6 {[%emt 0:00:05]} 3. Bc4 {[%emt 0:00:12]} Bc5 {[%emt 0:00:41]} 4. c3 {[%emt 0:00:10]} Nf6 {[%emt 0:00:06]} 5. d4 {[%emt 0:00:06]} exd4 {[%emt 0:00:07]} 6. e5 {[%emt 0:00:09]} d5 {[%emt 0:00:39]} 7. Bb5 {[%emt 0:00:07]} Ne4 {[%emt 0:00:28]} 8. cxd4 {[%emt 0:00:08]} Bb6 {[%emt 0:01:07]} 9. h3 {[%emt 0:02:04]} O-O {[%emt 0:01:16]} 10. Nc3 {[%emt 0:01:20]} Ne7 {[%emt 0:08:55]} 11. Bd3 {[%emt 0:01:10]} Bf5 {[%emt 0:04:06]} 12. Qc2 {[%emt 0:03:46]} Nxc3 {[%emt 0:02:51]} 13. Bxf5 {[%emt 0:05:28]} Nxf5 {[%emt 0:03:02]} 14. bxc3 {[%emt 0:00:14]} Qd7 {[%emt 0:02:58]} 15. Ba3 {[%emt 0:16:36]} Rfc8 {[%emt 0:03:24]} 16. g4 {[%emt 0:10:47]} Ne7 {[%emt 0:01:26]} 17. O-O {[%emt 0:02:52]} Ng6 {[%emt 0:05:31]} 18. Ng5 {[%emt 0:02:05]} f6 {[%emt 0:02:00]} 19. e6 {[%emt 0:11:01]} Qc6 {[%emt 0:22:34]} 20. Nxh7 {[%emt 0:03:06]} Kxh7 {[%emt 0:09:28]} 21. Qf5 {[%emt 0:01:41]} Qe8 {[%emt 0:00:38]} 22. Qxd5 {[%emt 0:00:33]} c6 {[%emt 0:01:27]} 23. Qe4 {[%emt 0:06:20]} Rd8 {[%emt 0:06:51]} 24. h4 {[%emt 0:03:31]} Kg8 {[%emt 0:02:36]} 25. h5 {[%emt 0:00:12]} Ne7 {[%emt 0:00:57]} 26. f4 {[%emt 0:03:00]} f5 {[%emt 0:02:47]} 27. gxf5 {[%emt 0:00:45]} Rd5 {[%emt 0:00:17]} 28. f6 {[%emt 0:08:25]} gxf6 {[%emt 0:00:12]} 29. f5 {[%emt 0:00:34]} Kh7 {[%emt 0:05:12]} 30. Rf2 {[%emt 0:01:33]} Rad8 {[%emt 0:02:36]} 31. Raf1 {[%emt 0:00:30]} Rxd4 {[%emt 0:06:47]} 32. cxd4 {[%emt 0:00:25]} Rxd4 {[%emt 0:00:00]} 33. Qf3 {[%emt 0:03:40]} Rh4 {[%emt 0:02:11]} 34. Bxe7 {[%emt 0:02:42]} Qg8+ {[%emt 0:02:01]} 35. Qg2 {[%emt 0:00:10]} Rg4 {[%emt 0:00:03]} 36. Kh1 {[%emt 0:01:02]} Qg5 {[%emt 0:01:23]} 1/2-1/2

[Event "37th Zalakaros Festival 2018"]
[Site "Zalakaros"]
[Date "2018.05.28"]
[Round "4"]
[White "Gombocz, Ferenc Jr"]
[Black "Papp, Gellert"]
[Result "1-0"]
[ECO "A15"]
[WhiteElo "2077"]
[BlackElo "2325"]
[Annotator "NA"]
[PlyCount "53"]
[EventDate "2018.??.??"]
[EventType "swiss"]
[EventCountry "HUN"]
[SourceTitle "playchess.com"]
[Source "ChessBase"]
[SourceQuality "1"]
[TimeControl "40/5400+30:1800+30"]

1. c4 {[%emt 0:00:04]} Nf6 {[%emt 0:08:12]} 2. g3 {[%emt 0:00:54]} g6 {[%emt 0:00:11]} 3. Bg2 {[%emt 0:00:05]} Bg7 {[%emt 0:00:06]} 4. Nc3 {[%emt 0:00:09]} O-O {[%emt 0:00:16]} 5. e4 {[%emt 0:00:14]} c5 {[%emt 0:00:29]} 6. Nge2 {[%emt 0:00:24]} Nc6 {[%emt 0:00:19]} 7. O-O {[%emt 0:00:17]} d6 {[%emt 0:00:19]} 8. d3 {[%emt 0:00:08]} a6 {[%emt 0:00:35]} 9. h3 {[%emt 0:01:10]} Rb8 {[%emt 0:00:21]} 10. Be3 {[%emt 0:00:44]} b5 {[%emt 0:02:56]} 11. cxb5 {[%emt 0:01:25]} axb5 {[%emt 0:00:03]} 12. d4 {[%emt 0:00:23]} Nd7 {[%emt 0:05:03]} 13. Rc1 {[%emt 0:17:54]} b4 {[%emt 0:10:37]} 14. Nd5 {[%emt 0:02:54]} e6 {[%emt 0:06:37]} 15. dxc5 {[%emt 0:07:06]} Nxc5 {[%emt 0:05:35]} 16. Bxc5 {[%emt 0:03:01]} dxc5 {[%emt 0:02:15]} 17. Ne3 {[%emt 0:04:04]} Bxb2 {[%emt 0:05:29]} 18. Rxc5 {[%emt 0:02:17]} Nd4 {[%emt 0:00:26]} 19. Nxd4 {[%emt 0:11:27]} Bxd4 {[%emt 0:00:36]} 20. Rc4 {[%emt 0:00:34]} Bc3 {[%emt 0:10:03]} 21. Qc2 {[%emt 0:03:16]} Ba6 {[%emt 0:03:49]} 22. Rd1 {[%emt 0:02:07]} Qa5 {[%emt 0:02:16]} 23. Rc6 {[%emt 0:01:14]} Ra8 {[%emt 0:13:31]} 24. e5 {[%emt 0:04:08]} Qxe5 {[%emt 0:03:26]} 25. Ng4 {[%emt 0:01:43]} Qe2 {[%emt 0:04:44]} 26. Qb3 {[%emt 0:01:43]} Ra7 {[%emt 0:06:14]} 27. Bf1 {[%emt 0:01:01]} 1-0